[Event "Norway Eliteserien 2023-24"]
[Site "Oslo"]
[Date "2024.03.10"]
[Round "9.42"]
[White "Asker-A. Jankovic"]
[Black "Vestby-Ellingsen, Mads"]
[Result "1-0"]
[ECO "E12"]
[WhiteElo "2550"]
[BlackElo "2338"]
[Annotator "TA"]
[PlyCount "83"]
[EventDate "2023.10.27"]
[EventType "team-tourn"]
[EventCountry "NOR"]
[SourceTitle "playchess.com"]
[Source "ChessBase"]
[SourceQuality "1"]
[TimeControl "40/5400+30:1800+30"]

{[%evp 10,83,12,0,0,0,8,4,18,1,33,39,41,31,38,42,42,56,72,56,97,98,105,90,135,135,131,120,167,156,235,220,252,238,294,297,300,303,291,307,447,435,442,454,550,597,593,577,524,412,396,415,412,403,416,423,417,403,386,197,427,433,426,383,412,400,364,343,346,318,558,299,1245,1226,5804,5393]} 1. d4 Nf6 2. Nf3 e6 3. c4 b6 4. a3 Bb7 5. Nc3 d5 6. Qa4+ Qd7 7. Qxd7+ Nbxd7 8. Nb5 Bd6 {The position is equal.} 9. Nd2 a6 10. Nxd6+ cxd6 11. cxd5 Bxd5 12. f3 {[%cal Bf2f3,Bf3f4][%mdl 32]} Ke7 13. a4 Bb7 14. e4 {[%cal Be2e4,Be4e5][%mdl 32] Prevents Nd5} d5 {White stays focused until the end.} 15. e5 Ne8 16. b3 f6 17. f4 Rc8 18. Bd3 f5 (18... a5 $16 19. Ba3+ Kd8) 19. Ba3+ $18 Kf7 (19... Kd8 $16 {was necessary.} 20. Nf3 h6) 20. Nf3 h6 {Prevents Ng5+. Black is weak on the dark squares} 21. Kd2 g6 {[#]} 22. g4 $1 {[%mdl 512]} Ng7 (22... fxg4 23. Nh4) 23. Rag1 Rcg8 24. Nh4 h5 (24... b5 $142 25. axb5 axb5 26. gxf5 (26. Bxb5 Ra8 $18) 26... Nxf5) 25. gxf5 Nxf5 26. Nf3 Kg7 27. Bxf5 exf5 28. Nh4 Kf7 {[%cal Bg7f7,Bf7e6,Be6f6][%mdl 32]} 29. e6+ Kxe6 30. Re1+ ({Inferior is} 30. Rxg6+ Rxg6 31. Nxg6 Rh6 32. Re1+ Kf7 $14) (30. Nxg6 Rh7 31. Nh4 Rxg1 32. Rxg1 Nf6 $18) 30... Kf6 31. Re7 {[%cal Oh1e1]} Rg7 32. Rhe1 Rxe7 33. Rxe7 Bc8 34. Bd6 (34. Nf3 $142 {White wants to mate with Ng5.} g5 35. fxg5+ (35. Nxg5 h4 $18) 35... Kg6 36. Re6+ Kf7 37. Rc6) 34... Rd8 $2 (34... g5) 35. Nf3 {Ng5 would kill now.} Nf8 {[#]} 36. Ng5 $1 Be6 {Inhibits Rf7+.} 37. Ba3 Bg8 38. Rc7 {Threatening mate with Be7+.} Nd7 39. h4 a5 $2 (39... Bf7 {is a better defense.} 40. Bb4 Bg8) 40. Bd6 {Ra7 would now be deadly.} Be6 $2 (40... Bf7 41. Ke1 Bg8) 41. Rc6 {Bc7 is the strong threat.} Re8 {[%emt 1:49:42]} 42. Be5+ {[%emt 1:53:47] Weighted Error Value: White=0.21 (precise) /Black=0.42.  Mistake:       	White=1     	Black=6      Inaccurate:     	White=1     	Black=4      OK:         	White=16    	Black=7      Best:        	White=6     	Black=4} 1-0

[Event "Norway Eliteserien 2023-24"]
[Site "Oslo"]
[Date "2024.03.10"]
[Round "9.43"]
[White "Lund, Gunnar"]
[Black "Tisdall, Jonathan D"]
[Result "1-0"]
[ECO "D77"]
[WhiteElo "2321"]
[BlackElo "2375"]
[Annotator "RC"]
[PlyCount "69"]
[EventDate "2023.10.27"]
[EventType "team-tourn"]
[EventCountry "NOR"]
[SourceTitle "playchess.com"]
[Source "ChessBase"]
[SourceQuality "1"]
[TimeControl "40/5400+30:1800+30"]

1. Nf3 Nf6 2. d4 d5 3. c4 e6 4. g3 g6 5. Bg2 Bg7 6. O-O O-O 7. Qc2 Nc6 8. Rd1 a5 9. a3 Ne4 10. Nc3 Nxc3 11. Qxc3 a4 12. Bf4 Nxd4 13. Nxd4 c5 14. Be3 Qe7 15. cxd5 exd5 16. Bxd5 cxd4 17. Bxd4 Bxd4 18. Rxd4 Ra6 19. Qd2 Be6 20. Bf3 b5 21. Qh6 Rd6 22. Rad1 Rxd4 23. Rxd4 Rc8 24. Kg2 Rc2 25. Rh4 f5 26. Qe3 Rxb2 27. Qe5 Rd2 28. Qxb5 Bd7 29. Qc4+ Qf7 30. Qb4 Rd1 31. Rd4 Rxd4 32. Qxd4 h5 33. h4 Qe7 34. Qc3 Be6 {[%emt 1:44:50]} 35. Qc6 {[%emt 1:32:10]} 1-0

[Event "Norway Eliteserien 2023-24"]
[Site "Oslo"]
[Date "2024.03.10"]
[Round "9.44"]
[White "Sahl, Bjarke"]
[Black "Schouten, Mathias Lind"]
[Result "1/2-1/2"]
[ECO "D37"]
[WhiteElo "2216"]
[BlackElo "2291"]
[Annotator "RC"]
[PlyCount "57"]
[EventDate "2023.10.27"]
[EventType "team-tourn"]
[EventCountry "NOR"]
[SourceTitle "playchess.com"]
[Source "ChessBase"]
[SourceQuality "1"]
[TimeControl "40/5400+30:1800+30"]

1. d4 Nf6 2. c4 e6 3. Nc3 d5 4. Nf3 Be7 5. e3 O-O 6. a3 c5 7. dxc5 dxc4 8. Qc2 Bxc5 9. Bxc4 a6 10. O-O Qc7 11. Ba2 Nbd7 12. b4 Bd6 13. Bb2 b5 14. Rac1 Bb7 15. Rfd1 Rad8 16. Nxb5 Qxc2 17. Rxc2 Bxb4 18. axb4 axb5 19. Rcd2 Ra8 20. Bb3 Nb6 21. Bd4 Nbd5 22. Bc5 Rfc8 23. Nd4 Nc3 24. Rc1 Nfe4 25. Rdc2 Nxc5 26. Rxc3 Nd3 27. Rxc8+ Rxc8 28. Rxc8+ Bxc8 {[%emt 1:14:53]} 29. Nxb5 {[%emt 1:22:57]} 1/2-1/2

[Event "Norway Eliteserien 2023-24"]
[Site "Oslo"]
[Date "2024.03.10"]
[Round "9.45"]
[White "Myagmarsuren, Evsuld"]
[Black "Aulin-Jansson, Joran"]
[Result "0-1"]
[ECO "B90"]
[WhiteElo "2142"]
[BlackElo "2102"]
[Annotator "RC"]
[PlyCount "118"]
[EventDate "2023.10.27"]
[EventType "team-tourn"]
[EventCountry "NOR"]
[SourceTitle "playchess.com"]
[Source "ChessBase"]
[SourceQuality "1"]
[TimeControl "40/5400+30:1800+30"]

1. e4 c5 2. Nf3 d6 3. d4 cxd4 4. Nxd4 Nf6 5. Nc3 a6 6. Be3 e5 7. Nb3 Be6 8. f3 Be7 9. Qd2 O-O 10. O-O-O Nc6 11. g4 a5 12. a4 Nb4 13. Kb1 Qc7 14. g5 Nd7 15. h4 Nb6 16. h5 Nc4 17. Bxc4 Qxc4 18. Nc1 Rfd8 19. g6 d5 20. h6 fxg6 21. hxg7 d4 22. Bxd4 exd4 23. Qh6 Kf7 24. Qxh7 Rg8 25. f4 Rxg7 26. Qh6 dxc3 27. f5 cxb2 28. fxe6+ Qxe6 29. Rdf1+ Ke8 30. Nb3 Rg8 31. Qh7 Rc8 32. Rh2 Rf8 33. Rxf8+ Bxf8 34. Qxb7 Qc6 35. Nxa5 Qxb7 36. Nxb7 Rb8 37. Rh7 Na6 38. e5 Nc5 39. Nxc5 Bxc5 40. Rg7 Rb6 41. a5 Ra6 42. c3 Kf8 43. Rc7 Ba3 44. Rb7 Rxa5 45. Rb3 Kf7 46. c4 Ke6 47. Rg3 Kf5 48. e6 Bd6 49. e7 Bxe7 50. Kxb2 g5 51. Rf3+ Kg6 52. Re3 Bc5 53. Re8 g4 54. Kc2 Kf5 55. Kd2 g3 56. Rg8 g2 57. Kc3 g1=Q 58. Rxg1 Bxg1 59. Kb4 {[%emt 1:46:07]} Rc5 {[%emt 1:22:03]} 0-1

[Event "Norway Eliteserien 2023-24"]
[Site "Oslo"]
[Date "2024.03.10"]
[Round "9.46"]
[White "Strand, Vetle Bjorge"]
[Black "Machlik, Monika"]
[Result "1-0"]
[ECO "B13"]
[WhiteElo "2089"]
[BlackElo "2068"]
[Annotator "RC"]
[PlyCount "107"]
[EventDate "2023.10.27"]
[EventType "team-tourn"]
[EventCountry "NOR"]
[SourceTitle "playchess.com"]
[Source "ChessBase"]
[SourceQuality "1"]
[TimeControl "40/5400+30:1800+30"]

1. e4 c6 2. d4 d5 3. exd5 cxd5 4. Bd3 Nc6 5. c3 e6 6. Bf4 Nge7 7. Nf3 f6 8. O-O g5 9. Bxg5 fxg5 10. Nxg5 Rg8 11. Nxh7 Bg7 12. Re1 Qd6 13. Ng5 Qf4 14. Qh5+ Kd8 15. g3 Qf6 16. Nd2 Kc7 17. Ndf3 Bd7 18. Re2 Raf8 19. Nh4 Rh8 20. Nh7 Qf7 21. Qxf7 Rxf7 22. Ng5 Rf6 23. Rae1 Kd6 24. f4 Bh6 25. Ngf3 Rg8 26. Kf2 Nf5 27. Ng2 Kc7 28. Rg1 Bf8 29. Nge1 Nh6 30. h3 Bd6 31. Ng2 Rgf8 32. Ne5 Nxe5 33. dxe5 Bc5+ 34. Ne3 R6f7 35. b4 Bb6 36. Kf3 Bc6 37. b5 d4+ 38. bxc6 dxe3 39. cxb7 Kxb7 40. Bc4 Rc7 41. Bxe6 Rxc3 42. g4 Rc5 43. Ke4 Ra5 44. Rc1 Rd8 45. g5 Ng8 46. g6 Ra4+ 47. Kf3 Ne7 48. g7 Rdd4 49. f5 Rf4+ 50. Kg2 Rae4 51. f6 Rxf6 52. exf6 Rxe6 53. fxe7 Rg6+ {[%emt 2:26:10]} 54. Kh1 {[%emt 2:22:18]} 1-0

[Event "Norway Eliteserien 2023-24"]
[Site "Oslo"]
[Date "2024.03.10"]
[Round "9.51"]
[White "SK 1911-I. Can"]
[Black "Sklyarov, Dmitry V."]
[Result "1-0"]
[ECO "C10"]
[WhiteElo "2512"]
[BlackElo "2450"]
[Annotator "NA"]
[PlyCount "79"]
[EventDate "2023.10.27"]
[EventType "team-tourn"]
[EventCountry "NOR"]
[SourceTitle "playchess.com"]
[Source "ChessBase"]
[SourceQuality "1"]
[TimeControl "40/5400+30:1800+30"]

1. e4 e6 2. d4 d5 3. Nc3 Nc6 4. Nf3 Nf6 5. e5 Ne4 6. Bd3 Bb4 7. Bd2 Bxc3 8. bxc3 b6 9. Qe2 Bb7 10. O-O Na5 11. Ne1 Qe7 12. a4 c5 13. f3 Nxd2 14. Qxd2 Bc6 15. f4 c4 16. Be2 Qd7 17. f5 exf5 18. Qg5 g6 19. g4 fxg4 20. Bxg4 Qe7 21. Rf6 h5 22. Bh3 Bd7 23. Bxd7+ Qxd7 24. e6 fxe6 25. Qxg6+ Kd8 26. Rf7 Qe8 27. Ng2 Rb8 28. Qf6+ Kc8 29. Re1 Rb7 30. Rxe6 Qd8 31. Ree7 Rxe7 32. Rxe7 Kb8 33. Qe6 Rf8 34. Rd7 Qf6 35. Qxf6 Rxf6 36. Ne3 Rf3 37. Nxd5 Nb3 38. cxb3 cxb3 39. Re7 a5 {[%emt 1:49:08]} 40. Re6 {[%emt 1:37:19]} 1-0

[Event "Norway Eliteserien 2023-24"]
[Site "Oslo"]
[Date "2024.03.10"]
[Round "9.52"]
[White "Mikalsen, Erlend"]
[Black "SK 1911-A. Isik"]
[Result "0-1"]
[ECO "B32"]
[WhiteElo "2341"]
[BlackElo "2436"]
[Annotator "NA"]
[PlyCount "60"]
[EventDate "2023.10.27"]
[EventType "team-tourn"]
[EventCountry "NOR"]
[SourceTitle "playchess.com"]
[Source "ChessBase"]
[SourceQuality "1"]
[TimeControl "40/5400+30:1800+30"]

1. e4 c5 2. Nf3 Nc6 3. d4 cxd4 4. Nxd4 e5 5. Nb5 d6 6. g3 Nf6 7. Bg5 Qa5+ 8. Bd2 Qd8 9. Bg5 a6 10. Bxf6 gxf6 11. N5c3 f5 12. Qh5 Nd4 13. Bc4 Nxc2+ 14. Kd1 Qc7 15. Nd2 Nxa1 16. Nd5 Qc5 17. b4 Qd4 18. Nc7+ Kd8 19. Nxa8 Be7 20. Re1 b5 21. Bxf7 Bb7 22. Bd5 Bxd5 23. exd5 Qxd5 24. Qf3 Qxf3+ 25. Nxf3 Kd7 26. Nb6+ Kc6 27. Kd2 Kxb6 28. Rxa1 Rc8 29. Rc1 Rxc1 30. Kxc1 {[%emt 0:44:53]} Kc6 {[%emt 1:05:05]} 0-1

[Event "Norway Eliteserien 2023-24"]
[Site "Oslo"]
[Date "2024.03.10"]
[Round "9.53"]
[White "Risting, Eivind Olav"]
[Black "Nielsen, Andre"]
[Result "1/2-1/2"]
[ECO "E21"]
[WhiteElo "2324"]
[BlackElo "2271"]
[Annotator "RC"]
[PlyCount "37"]
[EventDate "2023.10.27"]
[EventType "team-tourn"]
[EventCountry "NOR"]
[SourceTitle "playchess.com"]
[Source "ChessBase"]
[SourceQuality "1"]
[TimeControl "40/5400+30:1800+30"]

1. d4 Nf6 2. c4 e6 3. Nc3 Bb4 4. Nf3 O-O 5. Bd2 b6 6. e3 Bb7 7. Bd3 Bxc3 8. Bxc3 Ne4 9. Bxe4 Bxe4 10. d5 c5 11. Nd2 Bg6 12. h4 b5 13. cxb5 Qb6 14. h5 Bd3 15. h6 exd5 16. Bxg7 Re8 17. a4 a6 18. Nf3 Be4 {[%emt 1:18:49]} 19. b4 {[%emt 1:37:41]} 1/2-1/2

[Event "Norway Eliteserien 2023-24"]
[Site "Oslo"]
[Date "2024.03.10"]
[Round "9.54"]
[White "Bruaset, Eivind"]
[Black "Wallace, John Paul"]
[Result "1/2-1/2"]
[ECO "B90"]
[WhiteElo "2239"]
[BlackElo "2365"]
[Annotator "RC"]
[PlyCount "86"]
[EventDate "2023.10.27"]
[EventType "team-tourn"]
[EventCountry "NOR"]
[SourceTitle "playchess.com"]
[Source "ChessBase"]
[SourceQuality "1"]
[TimeControl "40/5400+30:1800+30"]

1. e4 c5 2. Nf3 d6 3. d4 cxd4 4. Nxd4 Nf6 5. Nc3 a6 6. h3 g6 7. Be3 Bg7 8. g3 b5 9. Bg2 Bb7 10. O-O Qc8 11. Qd2 Nbd7 12. a4 b4 13. Nd5 e5 14. Nb3 Nxd5 15. exd5 a5 16. Rfd1 O-O 17. Rac1 f5 18. c4 Qe8 19. c5 dxc5 20. Nxc5 Nxc5 21. Bxc5 Rf7 22. d6 Bxg2 23. Kxg2 Qc6+ 24. Qd5 Qxd5+ 25. Rxd5 Rb7 26. d7 Rd8 27. Rcd1 Kf7 28. b3 e4 29. Be3 Ke7 30. Bc5+ Kf7 31. Be3 Ke7 32. Rxa5 Rdxd7 33. Rxd7+ Kxd7 34. Ra7 Rxa7 35. Bxa7 Kc6 36. Be3 Be5 37. f3 Bc7 38. fxe4 fxe4 39. g4 Kd5 40. Kf2 Bd8 41. Kg3 Bc7+ 42. Kf2 Bd8 43. Kg3 {[%emt 1:44:17]} Bc7+ {[%emt 1:32:21]} 1/2-1/2

[Event "Norway Eliteserien 2023-24"]
[Site "Oslo"]
[Date "2024.03.10"]
[Round "9.55"]
[White "Lindbol, Aleksander"]
[Black "Skaar, Ben Samuel Groth"]
[Result "1-0"]
[ECO "B33"]
[WhiteElo "2229"]
[BlackElo "1980"]
[Annotator "RC"]
[PlyCount "105"]
[EventDate "2023.10.27"]
[EventType "team-tourn"]
[EventCountry "NOR"]
[SourceTitle "playchess.com"]
[Source "ChessBase"]
[SourceQuality "1"]
[TimeControl "40/5400+30:1800+30"]

1. e4 c5 2. Nf3 Nc6 3. d4 cxd4 4. Nxd4 Nf6 5. Nc3 e5 6. Ndb5 d6 7. Bg5 a6 8. Na3 b5 9. Nd5 Be7 10. Bxf6 Bxf6 11. c4 b4 12. Nc2 O-O 13. Be2 a5 14. O-O g6 15. Qd3 Bg7 16. Rad1 Be6 17. Nde3 Qb6 18. Bg4 Rad8 19. b3 Ne7 20. Qe2 f5 21. Bh3 Qb7 22. exf5 Nxf5 23. Nxf5 gxf5 24. Ne3 Qf7 25. Nd5 Rc8 26. Rd2 Bh6 27. Ne3 Rfd8 28. Rfd1 Bf8 29. Qf3 f4 30. Bxe6 Qxe6 31. Qg4+ Qxg4 32. Nxg4 Be7 33. f3 Kf7 34. Rd5 a4 35. Nf2 axb3 36. axb3 Rc5 37. Rxc5 dxc5 38. Rxd8 Bxd8 39. g3 fxg3 40. hxg3 Kf6 41. Ne4+ Kf5 42. g4+ Kf4 43. Kf2 Be7 44. Ke2 h5 45. gxh5 Bf8 46. Kf2 Kf5 47. Kg3 Bh6 48. Nxc5 Be3 49. Ne4 Bf4+ 50. Kf2 Ke6 51. Ke2 Kd7 52. Kd3 Kc6 {[%emt 2:06:29]} 53. Nf6 {[%emt 2:13:03]} 1-0

[Event "Norway Eliteserien 2023-24"]
[Site "Oslo"]
[Date "2024.03.10"]
[Round "9.56"]
[White "Hammari, Vinjar"]
[Black "Dahl, Max"]
[Result "1/2-1/2"]
[ECO "B24"]
[WhiteElo "1875"]
[BlackElo "2207"]
[Annotator "RC"]
[PlyCount "72"]
[EventDate "2023.10.27"]
[EventType "team-tourn"]
[EventCountry "NOR"]
[SourceTitle "playchess.com"]
[Source "ChessBase"]
[SourceQuality "1"]
[TimeControl "40/5400+30:1800+30"]

1. e4 c5 2. Nc3 e6 3. Nge2 d5 4. exd5 exd5 5. d4 Nf6 6. g3 Nc6 7. Bg2 cxd4 8. Nxd4 Bb4 9. O-O Bxc3 10. bxc3 O-O 11. Bg5 h6 12. Bxf6 Qxf6 13. Bxd5 Rd8 14. Bxc6 bxc6 15. Qf3 Qxf3 16. Nxf3 c5 17. Rfd1 Rxd1+ 18. Rxd1 Be6 19. Ne5 Bxa2 20. Nd3 Rb8 21. Nxc5 Rb1 22. Rxb1 Bxb1 23. Kf1 Bxc2 24. Ke2 Kf8 25. Kd2 Bf5 26. c4 Ke7 27. Kc3 Kd6 28. Nb7+ Kc7 29. Na5 Kb6 30. Kb4 Be6 31. Nb3 h5 32. h4 g6 33. Na5 Bd7 34. Nb3 Be6 35. Na5 Bd7 36. Nb3 {[%emt 1:06:12]} Be6 {[%emt 1:35:11]} 1/2-1/2